bitfinex-derivatives/quotes_ETHF0:USTF0_20260125
["timestamp","ask_amount","ask_price","bid_price","bid_amount"]
[1769356015691,0.15023488,2930.7,2929.3,0.00360501]
[1769356017999,0.15023488,2931.1,2929.3,0.15235583]
[1769356020200,0.17376281,2931.9,2929.7,0.14875082]
[1769356020399,0.15023488,2931.8,2929.7,0.14875082]
[1769356021896,0.15023488,2931.8,2929.7,0.31966082]
[1769356022090,0.15023488,2931.8,2929.8,0.14875082]
[1769356023707,0.14042501,2931.4,2929.9,0.13905447]
[1769356023900,0.14042501,2931.4,2929.8,0.1709]
[1769356024303,0.14042501,2931.4,2929.5,0.13905447]
[1769356024504,0.93133501,2931.1,2929.5,2.14205447]
[1769356025605,0.79210501,2930.8,2929.5,2.93415948]
[1769356031814,0.79210501,2930.8,2929.5,0.93115948]
[1769356032007,0.79210501,2930.6,2929.5,0.13905447]
[1769356036213,0.79210501,2930.8,2929.5,0.13905447]
[1769356038015,0.79210501,2931.0,2929.6,0.14484528]
[1769356038909,6.386,2931.4,2930.4,0.79210501]
[1769356039109,0.14707213,2931.5,2930.4,0.79210501]
[1769356039706,0.79210501,2931.8,2930.4,0.79210501]
[1769356039908,0.79210501,2931.5,2930.2,0.93695029]
[1769356043620,0.14707213,2931.8,2930.3,0.14484528]
[1769356043621,0.79210501,2931.7,2930.3,0.14484528]
[1769356044323,0.00298281,2931.9,2930.9,0.79210501]
[1769356044518,0.00298281,2931.9,2930.7,0.93695029]
[1769356046722,0.79508782,2931.9,2930.7,0.93695029]
[1769356048221,0.00298281,2931.9,2930.7,0.93695029]
[1769356048721,0.00298281,2931.9,2930.8,0.14484528]
[1769356054325,0.79210501,2931.7,2930.6,0.17086]
[1769356055530,0.1498489,2931.8,2930.6,0.17086]
[1769356056519,0.00298281,2931.9,2930.8,0.14708276]
[1769356056821,0.00298281,2931.9,2930.9,0.79210501]
[1769356057826,0.00298281,2931.9,2931.1,0.79210501]
[1769356058331,0.00298281,2931.9,2930.9,0.79210501]
[1769356058530,0.00298281,2931.9,2930.8,0.17084]
[1769356058531,0.00298281,2931.9,2930.8,2.17384]
[1769356062831,0.00298281,2931.9,2930.8,2.32092276]
[1769356067236,0.79210501,2931.6,2930.5,2.003]
[1769356067836,0.79210501,2931.6,2930.5,2.15008276]
[1769356068330,0.79210501,2931.8,2930.5,2.15008276]
[1769356069738,0.79210501,2931.8,2930.5,2.94218777]
[1769356080341,0.00298281,2931.9,2930.6,0.14708276]
[1769356081053,0.00298281,2931.9,2930.8,0.14708276]
[1769356081237,0.00298281,2931.9,2931.2,0.93918777]
[1769356081443,0.00298281,2931.9,2931.2,2.94218777]
[1769356082251,0.00298281,2931.9,2931.2,2.003]
[1769356083044,0.00298281,2931.9,2930.9,0.93340795]
[1769356083242,0.00298281,2931.9,2931.0,2.003]
[1769356084853,0.79210501,2931.7,2930.8,0.17084]
[1769356085052,0.79210501,2931.7,2930.8,2.17384]
[1769356086049,0.00298281,2931.9,2930.8,2.17384]
[1769356086050,0.79210501,2931.5,2930.8,2.003]
[1769356086449,0.79210501,2931.7,2930.6,2.003]
[1769356087555,0.00298281,2931.9,2930.6,2.003]
[1769356091644,0.00298281,2931.9,2930.7,0.14130294]
[1769356091849,0.00298281,2931.9,2930.9,0.14130294]
[1769356092755,0.00298281,2931.9,2931.0,0.14130294]
[1769356096456,0.00298281,2931.9,2931.1,2.003]
[1769356104566,0.00298281,2931.9,2931.1,2.14331202]
[1769356112362,0.00298281,2931.9,2930.7,0.14031202]
[1769356112562,0.00298281,2931.9,2930.8,2.003]
[1769356113265,0.13965895,2931.9,2930.4,0.17087]
[1769356113465,0.13965895,2931.9,2930.5,2.003]
[1769356126170,0.13965895,2931.9,2930.5,2.14231736]
[1769356127379,0.00298281,2931.9,2930.6,0.13931736]
[1769356131583,0.00298281,2931.9,2930.7,0.13931736]
[1769356136285,6.386,2932.6,2930.7,0.13931736]
[1769356136487,3.9279455,2932.5,2930.7,0.13931736]
[1769356136686,0.13667614,2932.6,2930.7,0.13931736]
[1769356136882,3.9279466,2932.5,2930.7,0.13931736]
[1769356137186,0.13667614,2932.6,2930.7,0.13931736]
[1769356137385,3.92810644,2932.5,2930.7,0.13931736]
[1769356137585,0.13932131,2932.6,2930.7,0.13931736]
[1769356137787,3.92810999,2932.5,2930.7,0.13931736]
[1769356137992,0.13932131,2932.6,2930.7,0.13931736]
[1769356138188,4.06464409,2932.5,2930.7,0.13931736]
[1769356138380,0.13667614,2932.5,2930.7,0.13931736]
[1769356140691,0.13667614,2932.5,2930.9,0.13931736]
[1769356140887,0.13667614,2932.5,2931.0,0.13931736]
[1769356141384,0.00264517,2932.6,2931.0,0.13931736]
[1769356142587,0.00264517,2932.6,2931.0,0.93088808]
[1769356142780,0.00264517,2932.6,2931.1,0.13931736]
[1769356142981,6.52267614,2933.3,2931.5,0.1410445]
[1769356143185,3.415,2933.9,2931.9,0.1410445]
[1769356143186,0.1465078,2933.6,2931.9,0.1410445]
[1769356143581,3.11173852,2934.0,2931.9,0.44389457]
[1769356143783,3.92849079,2933.9,2932.0,0.1410445]
[1769356143990,0.14924407,2933.9,2932.0,0.14507269]
[1769356149597,0.14924407,2933.9,2932.3,0.79057381]
[1769356149598,0.79057381,2933.6,2932.3,0.79057381]
[1769356164414,0.93470185,2933.6,2932.3,0.79057381]
[1769356165512,0.79057381,2932.8,2932.0,0.00402819]
[1769356165712,0.79057381,2932.6,2932.0,0.00402819]
[1769356166216,0.79057381,2932.4,2932.0,0.00402819]
[1769356166420,0.79057381,2932.2,2931.2,2.002]
[1769356166624,0.93470185,2932.4,2931.2,2.002]
[1769356167417,0.93470185,2932.4,2931.2,2.00499751]
[1769356167719,0.93470185,2932.4,2931.2,0.00299751]
[1769356167919,0.14412804,2932.4,2931.2,0.00299751]
[1769356169018,0.93470185,2932.8,2931.3,0.92993669]
[1769356170815,0.14412804,2932.8,2931.4,0.13936288]
[1769356171021,0.14412804,2932.8,2931.5,0.92993669]
[1769356175822,0.93653234,2932.7,2931.2,0.94374694]
[1769356176522,0.14595853,2932.4,2931.2,2.15517313]
[1769356176820,0.93653234,2932.4,2931.2,2.15517313]
[1769356177619,0.93653234,2932.4,2931.2,0.15317313]
[1769356177818,0.93653234,2932.4,2931.2,2.15517313]
[1769356178021,0.14595853,2931.9,2931.2,0.00299751]
[1769356178327,0.79057381,2931.3,2930.2,2.15217562]
[1769356178521,0.79057381,2931.7,2930.2,2.94274943]
[1769356179122,0.94087404,2931.7,2930.2,0.94434089]
[1769356179322,0.79057381,2931.1,2930.2,0.00359146]
[1769356179726,0.79057381,2930.9,2930.2,0.00359146]
[1769356180321,0.93653234,2930.7,2929.5,2.79257381]
[1769356180522,0.14595853,2930.7,2929.5,2.79257381]
[1769356180923,0.93653234,2931.1,2929.7,0.15017562]
[1769356181228,0.93653234,2931.5,2930.1,0.79057381]
[1769356181429,0.79057381,2931.3,2930.1,0.79320094]
[1769356183124,0.0043417,2931.7,2930.9,0.79057381]
[1769356183330,0.0043417,2931.7,2930.8,2.003]
[1769356184235,0.79491551,2931.7,2930.8,2.003]
[1769356184530,0.79057381,2931.5,2930.3,0.15017562]
[1769356184736,0.79057381,2931.5,2930.5,2.003]
[1769356184923,0.14595853,2931.6,2930.5,2.003]
[1769356186533,0.14595853,2931.6,2930.3,0.94074943]
[1769356186735,0.14595853,2931.6,2930.4,2.003]
[1769356187133,0.79057381,2931.3,2930.1,0.00262713]
[1769356187329,0.79057381,2931.3,2930.2,2.003]
[1769356188734,0.79057381,2931.5,2930.2,2.003]
[1769356188934,0.79057381,2931.5,2930.2,2.79357381]
[1769356190736,0.93653234,2931.5,2930.2,2.79357381]
[1769356191033,0.14595853,2931.4,2930.2,2.79357381]
[1769356192943,0.14595853,2931.4,2930.2,0.79057381]
[1769356193144,0.14595853,2931.4,2930.2,2.79357381]
[1769356193741,0.14595853,2931.4,2930.2,2.003]
[1769356194644,0.79057381,2931.3,2930.2,2.003]
[1769356195048,0.79057381,2931.3,2930.2,1.549]
[1769356195853,0.14595853,2931.4,2930.2,1.549]
[1769356196553,0.79057381,2931.5,2930.2,1.549]
[1769356197958,0.79057381,2931.5,2930.1,0.00262713]
[1769356198155,0.79057381,2931.5,2930.2,2.003]
[1769356199354,0.79057381,2931.5,2930.2,2.15317562]
[1769356199553,0.79057381,2931.5,2930.3,0.15017562]
[1769356200664,0.0043417,2931.7,2930.8,0.94074943]
[1769356200853,0.0043417,2931.7,2930.8,0.15017562]
[1769356201360,0.0043417,2931.7,2930.3,0.17087]
[1769356201361,0.0043417,2931.7,2930.7,2.003]
[1769356201756,0.0043417,2931.7,2930.8,0.15017562]
[1769356201957,0.0043417,2931.7,2930.9,0.15017562]
[1769356201958,0.00075024,2931.7,2930.9,0.15017562]
[1769356202362,0.14595853,2933.1,2931.3,0.15017562]
[1769356202564,0.79057381,2932.9,2931.7,0.15017562]
[1769356202857,0.79057381,2932.9,2931.6,2.003]
[1769356203053,0.79057381,2932.7,2931.6,2.003]
[1769356203561,0.79463309,2932.7,2931.5,2.003]
[1769356203763,0.79057381,2932.5,2931.5,2.003]
[1769356204457,0.79463309,2932.7,2931.5,2.003]
[1769356206563,0.79463309,2932.7,2931.4,0.79057381]
[1769356206766,0.79057381,2932.5,2931.5,2.003]
[1769356207764,0.79463309,2932.7,2931.5,2.003]
[1769356209467,0.79463309,2932.7,2931.4,2.79357381]
[1769356209768,0.00405928,2932.7,2931.4,2.003]
[1769356212564,0.00405928,2932.7,2931.3,0.15017562]
[1769356212780,0.14467853,2932.6,2931.4,2.003]
[1769356214553,0.14467853,2932.6,2930.9,0.14436159]
[1769356214759,0.14467853,2932.6,2931.0,2.003]
[1769356215056,0.14467853,2932.6,2930.9,0.14436159]
[1769356215252,0.14252325,2932.2,2930.7,0.17084]
[1769356215458,0.14252325,2932.2,2930.7,2.17384]
[1769356216061,0.14252325,2932.2,2930.7,0.17084]
[1769356216268,0.14252325,2932.2,2930.6,2.003]
[1769356222475,0.14252325,2932.2,2930.5,0.1383718]
[1769356222769,0.14252325,2932.2,2930.5,2.1413718]
[1769356223874,0.14252325,2932.2,2930.6,0.1383718]
[1769356224672,6.52852325,2932.6,2930.7,0.1383718]
[1769356224873,6.52852325,2932.6,2930.8,0.1383718]
[1769356225269,0.00405928,2932.7,2931.3,0.1383718]
[1769356225464,0.00405928,2932.7,2931.5,0.1383718]
[1769356225671,0.00405928,2932.7,2931.5,2.1413718]
[1769356226578,0.00405928,2932.7,2931.5,0.1383718]
[1769356234177,0.14710305,2932.7,2931.3,0.17081]
[1769356234382,0.79107491,2932.2,2930.7,9.10427891]
[1769356234582,0.79107491,2932.2,2930.8,2.003]
[1769356234785,0.79107491,2932.2,2930.8,2.14566408]
[1769356235280,0.14304377,2932.3,2930.8,2.14566408]
[1769356239479,0.79107491,2932.6,2930.9,0.14266408]
[1769356240371,0.93411868,2932.6,2930.9,0.14266408]
[1769356242678,0.14304377,2932.5,2930.9,0.14266408]
[1769356247583,0.00405928,2932.7,2930.9,0.14266408]
[1769356249590,0.00405928,2932.7,2930.9,0.31350408]
[1769356249791,0.00405928,2932.7,2931.0,0.14266408]
[1769356250593,0.00405928,2932.7,2931.0,0.31349408]
[1769356250786,0.00405928,2932.7,2931.2,0.14266408]
[1769356256298,0.00405928,2932.7,2931.2,3.55766408]
[1769356256697,0.00405928,2932.7,2931.2,3.415]
[1769356256899,0.00405928,2932.7,2931.3,0.14266408]
[1769356262209,0.00405928,2932.7,2931.3,0.31347408]
[1769356262397,0.00405928,2932.7,2931.4,0.14266408]
[1769356269610,0.79509389,2932.7,2931.5,0.14287306]
[1769356273913,0.79103461,2932.0,2930.8,8.79077483]
[1769356274108,0.79103461,2932.0,2930.9,2.003]
[1769356274511,0.79103461,2932.0,2931.0,2.003]
[1769356274709,0.79103461,2931.8,2930.7,0.31372306]
[1769356274907,0.79103461,2931.8,2930.8,2.003]
[1769356276116,0.79103461,2931.8,2930.7,0.14287306]
[1769356276311,0.79103461,2931.6,2930.3,3.56479934]
[1769356276512,0.79103461,2931.6,2930.4,2.003]
[1769356277812,0.79103461,2931.6,2930.5,2.003]
[1769356289621,0.93460786,2931.6,2930.5,2.003]
[1769356289826,0.79103461,2931.4,2930.5,2.003]
[1769356290823,0.79103461,2931.4,2930.2,0.17088]
[1769356291027,0.79103461,2931.4,2930.4,2.003]
[1769356291213,0.79103461,2931.4,2930.2,0.17088]
[1769356291418,0.79103461,2931.4,2930.3,2.003]
[1769356292425,0.79103461,2931.4,2930.2,0.17088]
[1769356292626,0.79103461,2931.4,2930.3,2.003]
[1769356300030,0.79103461,2930.8,2930.1,0.00262713]
[1769356304133,0.79103461,2931.1,2930.1,0.00262713]
[1769356306038,0.79103461,2930.9,2930.1,0.00262713]
[1769356306336,0.93812255,2930.7,2930.1,0.00262713]
[1769356309641,0.93812255,2930.7,2929.6,2.003]
[1769356310736,0.93812255,2930.7,2929.6,2.00641095]
[1769356311236,0.93812255,2930.7,2929.6,0.00341095]
[1769356312643,0.79103461,2930.5,2929.6,0.00341095]
[1769356312938,0.794585,2930.5,2929.6,0.00341095]
[1769356313544,0.00355039,2930.5,2929.6,0.00341095]
[1769356313843,0.794585,2930.5,2929.6,0.00341095]
[1769356315639,0.79103461,2930.3,2929.6,0.00341095]
[1769356320441,0.00355039,2930.5,2929.6,0.79444556]
[1769356320646,0.00355039,2930.5,2929.8,0.79103461]
[1769356321742,0.79103461,2931.1,2929.8,0.93498528]
[1769356322039,0.79103461,2931.1,2929.9,0.14395067]
[1769356322244,6.386,2931.3,2930.1,0.14395067]
[1769356322438,7.17703461,2931.3,2930.1,0.14395067]
[1769356322747,0.79103461,2931.0,2929.7,0.31486067]
[1769356323443,0.79103461,2930.8,2929.7,0.17091]
[1769356323937,0.79103461,2930.8,2929.6,0.00341095]
[1769356323938,0.92880073,2930.8,2929.6,0.00341095]
[1769356324142,0.79103461,2930.6,2929.6,2.00741095]
[1769356326548,0.79103461,2930.6,2929.6,0.00341095]
[1769356327246,0.92880073,2930.6,2929.6,0.00341095]
[1769356328045,0.92880073,2930.4,2929.6,0.00341095]
[1769356328346,0.79103461,2931.0,2929.6,0.00341095]
[1769356328347,0.92880073,2930.2,2929.6,0.00341095]
[1769356329944,0.79103461,2930.2,2929.6,0.00341095]
[1769356331644,0.13776612,2930.6,2929.6,0.00341095]
[1769356335755,0.14024855,2931.1,2929.6,0.00341095]
[1769356336048,0.00297332,2931.3,2929.8,0.13993007]
[1769356337554,0.00297332,2931.3,2929.9,0.17089]
[1769356337854,0.00297332,2931.3,2930.0,2.004]
[1769356340448,0.14322187,2931.3,2930.0,2.004]
[1769356343253,0.14322187,2931.3,2929.9,0.17089]
[1769356343459,0.14322187,2931.3,2930.0,2.004]
[1769356343651,0.14024855,2931.1,2930.0,2.004]
[1769356344453,0.14024855,2931.1,2929.9,0.17089]
[1769356345051,0.14024855,2931.1,2929.6,0.00341095]
[1769356345251,0.14024855,2931.1,2929.6,2.00741095]
[1769356353971,0.00297332,2931.3,2929.9,0.14073594]
[1769356363077,0.00297332,2931.3,2930.0,0.14073594]
[1769356374086,0.00297332,2931.3,2929.6,0.14414689]
[1769356374087,0.13767068,2931.1,2929.6,0.14414689]
[1769356374282,0.13767068,2931.1,2929.7,2.004]
[1769356378883,0.00297332,2931.3,2929.8,0.14073594]
[1769356379283,0.140644,2931.3,2929.8,0.14073594]
[1769356379483,0.13767068,2931.0,2929.7,2.004]
[1769356385398,0.13767068,2931.0,2929.6,0.00341095]
[1769356391593,0.79221441,2930.6,2929.6,0.00341095]
[1769356394399,0.31448734,2931.3,2930.0,0.79221441]
[1769356394599,0.14366734,2931.3,2930.0,0.93744523]
[1769356395494,0.79221441,2931.2,2930.0,0.93744523]
[1769356395894,0.79221441,2931.2,2930.0,0.14523082]
[1769356398899,0.14366734,2931.3,2929.6,0.00341095]
[1769356398900,0.79221441,2930.4,2929.6,0.00341095]
[1769356403902,0.79221441,2930.6,2929.6,0.00341095]
[1769356408498,0.31682342,2931.2,2929.6,0.00341095]
[1769356408704,0.14600342,2931.2,2930.0,0.79221441]
[1769356408899,0.79221441,2931.1,2929.8,0.79221441]
[1769356409299,0.93821783,2931.1,2929.8,0.79221441]
[1769356415110,0.14961531,2931.0,2929.6,0.00341095]
[1769356415309,0.79221441,2930.7,2929.6,0.00341095]
[1769356415609,0.94182972,2930.7,2929.6,0.00341095]
[1769356415808,0.14961531,2930.6,2929.6,0.00341095]
[1769356418812,0.94182972,2930.5,2929.6,0.00341095]
[1769356420505,0.79221441,2929.9,2928.8,0.17096]
[1769356420711,0.14961531,2930.0,2929.1,2.004]
[1769356421513,0.14961531,2930.0,2929.1,0.00413169]
[1769356421714,0.14961531,2930.0,2929.2,2.004]
[1769356421903,0.14961531,2930.0,2929.1,0.00413169]
[1769356422107,0.14961531,2930.0,2929.3,2.004]
[1769356423317,0.14961531,2930.0,2929.1,0.00413169]
[1769356423611,0.79221441,2929.9,2929.1,0.00413169]
[1769356423816,0.79221441,2929.9,2929.2,2.004]
[1769356424311,0.79221441,2929.9,2929.1,0.00413169]
[1769356425817,0.94182972,2929.9,2929.1,0.00413169]
[1769356427715,0.79221441,2929.7,2929.1,0.00413169]
[1769356429020,0.14961531,2929.6,2928.6,2.004]
[1769356429410,0.14961531,2929.6,2928.4,0.79221441]
[1769356429610,0.14961531,2929.6,2928.5,2.004]
[1769356429813,0.14961531,2929.6,2928.5,2.00717944]
[1769356433325,0.14961531,2930.3,2929.1,0.79221441]
[1769356433623,0.14961531,2930.3,2928.9,0.79221441]
[1769356433823,0.79221441,2930.2,2928.9,0.79221441]
[1769356437427,0.14961531,2930.3,2928.9,0.79221441]
[1769356437428,0.14961531,2930.3,2929.1,0.79221441]
[1769356438532,0.14961531,2930.3,2928.9,0.93575461]
[1769356442836,0.79221441,2930.2,2928.9,0.93575461]
[1769356443937,0.94278798,2930.2,2928.9,0.93575461]
[1769356450140,0.15057357,2930.1,2928.9,0.79221441]
[1769356450343,0.15057357,2929.7,2928.5,0.17415944]
[1769356450530,0.79221441,2929.4,2928.5,0.00317944]
[1769356450935,0.79221441,2929.2,2928.5,0.00317944]
[1769356451131,0.79529546,2929.2,2928.5,0.00317944]
[1769356452135,0.00308105,2929.2,2928.5,0.00317944]
[1769356455446,0.14480809,2929.2,2928.5,0.00317944]
[1769356460750,0.14480809,2929.2,2927.7,5.422]
[1769356460946,0.14172704,2929.1,2927.7,5.422]
[1769356461849,0.14172704,2929.1,2927.7,5.42485329]
[1769356462052,0.14172704,2929.1,2927.7,0.00285329]
[1769356462239,0.14172704,2929.1,2927.8,2.005]
[1769356463545,0.14172704,2929.1,2927.7,0.00285329]
[1769356464146,0.14172704,2929.1,2927.7,2.00785329]
[1769356464647,0.14172704,2929.1,2927.7,0.00285329]
[1769356471546,0.14172704,2928.7,2927.7,0.00285329]
[1769356473061,0.14172704,2928.7,2927.1,2.005]
[1769356474060,0.14172704,2928.7,2927.1,2.00775606]
[1769356474451,0.14172704,2928.7,2927.1,0.00275606]
[1769356474659,0.9300541,2928.0,2927.1,0.00275606]
[1769356474962,0.9300541,2928.0,2926.3,3.4431176]
[1769356474963,0.1372845,2927.9,2926.3,3.4431176]
[1769356475156,0.1372845,2927.9,2926.3,1.4381176]
[1769356475355,0.1372845,2927.9,2926.3,2.53982233]
[1769356475756,0.1372845,2927.9,2926.3,0.53482233]
[1769356476056,0.1372845,2927.9,2926.3,2.54337305]
[1769356476259,0.1372845,2927.5,2926.3,0.53837305]
[1769356478062,0.1372845,2927.1,2925.4,2.005]
[1769356478267,0.1372845,2927.1,2925.5,0.14721458]
[1769356478667,0.1372845,2927.1,2926.3,0.34106556]
[1769356479161,0.1411918,2927.1,2926.3,0.34467517]
[1769356479669,0.1411918,2927.1,2926.3,0.00360961]
[1769356480169,0.1411918,2927.1,2925.5,0.14721458]
[1769356480368,0.1411918,2927.1,2925.2,0.14721458]
[1769356480869,0.1411918,2927.1,2925.3,2.005]
[1769356481070,0.1411918,2927.1,2925.2,0.14721458]
[1769356481271,0.1372845,2926.0,2924.0,10.15627007]
[1769356481476,0.9300541,2924.9,2923.1,0.17129]
[1769356481679,0.1372845,2924.8,2922.8,0.42612114]
[1769356481873,0.7927696,2924.9,2922.8,0.14721458]
[1769356481874,0.1372845,2924.4,2922.8,0.14721458]
[1769356482185,0.1372845,2924.4,2923.8,0.25]
[1769356482375,0.1372845,2924.4,2922.8,0.14721458]
[1769356482376,0.13973273,2924.4,2922.8,0.14721458]
[1769356482673,0.00244823,2924.4,2923.4,0.14721458]
[1769356482877,0.00244823,2924.4,2923.5,2.006]
[1769356483175,0.00244823,2924.4,2923.1,0.14721458]
[1769356483367,0.00244823,2924.4,2923.2,0.14721458]
[1769356483964,0.00244823,2924.4,2923.1,0.00308553]
[1769356484268,0.13973273,2924.4,2923.1,0.00308553]
[1769356484873,0.13973273,2924.4,2922.4,0.14721458]
[1769356485173,0.13973273,2924.4,2922.5,0.14721458]
[1769356485871,0.13973273,2924.4,2922.5,0.15106567]
[1769356486276,0.13973273,2924.4,2922.6,2.15321458]
[1769356487573,0.00244823,2924.4,2922.7,0.14721458]
[1769356487876,0.1372845,2925.2,2923.3,0.14721458]
[1769356488074,0.1372845,2925.6,2923.5,0.17127]
[1769356488376,0.1372845,2925.6,2923.7,0.14721458]
[1769356489081,0.14011948,2925.6,2923.7,0.14721458]
[1769356489281,0.00283498,2925.6,2923.9,0.17125]
[1769356489578,0.00283498,2925.6,2924.3,0.14721458]
[1769356489972,0.00283498,2925.6,2924.4,0.17122]
[1769356490174,0.1372845,2926.2,2924.6,0.14721458]
[1769356490375,0.3083745,2926.7,2924.6,0.14721458]
[1769356490576,0.3083745,2926.7,2924.8,0.14721458]
[1769356491072,0.1372845,2926.6,2924.8,0.14721458]
[1769356491267,0.1372845,2926.6,2924.8,0.15025095]
[1769356491577,0.1372845,2926.4,2924.8,0.00303637]
[1769356491778,0.1372845,2926.2,2924.8,0.00303637]
[1769356494076,0.3084045,2926.1,2924.8,0.00303637]
[1769356494278,0.3084045,2926.1,2923.6,0.17126]
[1769356494279,0.1372845,2925.5,2923.6,0.14721458]
[1769356494475,0.1372845,2925.5,2923.5,2.15421458]
[1769356494781,0.1372845,2925.5,2923.7,0.14721458]
[1769356495278,0.1372845,2925.5,2923.7,0.14983571]
[1769356495481,0.1372845,2925.5,2923.8,0.14721458]
[1769356496176,0.1372845,2925.5,2923.9,0.14721458]
[1769356496677,0.1372845,2925.9,2923.9,0.14721458]
[1769356497676,0.1372845,2925.9,2924.1,0.17123]
[1769356497979,0.1372845,2925.9,2924.1,0.31844458]
[1769356498180,0.1372845,2925.9,2924.2,0.14721458]
[1769356498382,0.1372845,2925.9,2924.3,0.14721458]
[1769356498577,0.1372845,2925.9,2924.4,2.007]
[1769356499079,0.1372845,2925.9,2924.4,2.15421458]
[1769356500077,0.1372845,2926.5,2924.4,2.15421458]
[1769356500577,0.1372845,2926.4,2923.7,0.00262113]
[1769356500781,0.1372845,2926.1,2923.7,0.00262113]
[1769356501179,0.1372845,2925.7,2923.7,0.00262113]
[1769356501481,0.1372845,2925.4,2923.7,0.00262113]
[1769356502180,0.1372845,2925.3,2923.7,0.00262113]
[1769356502977,0.1372845,2925.3,2923.7,0.17388113]
[1769356504679,6.386,2925.7,2923.9,0.13625195]
[1769356504880,0.14107276,2925.8,2924.1,0.13625195]
[1769356505082,0.14107276,2925.8,2924.1,0.30748195]
[1769356505389,0.14107276,2926.3,2924.2,0.13625195]
[1769356505587,0.14107276,2926.3,2924.3,5.56625195]
[1769356505988,0.14107276,2926.3,2924.4,0.13625195]
[1769356507291,0.14107276,2926.3,2924.3,5.60122]
[1769356508189,0.14107276,2926.3,2924.5,0.13625195]
[1769356508490,0.14387695,2926.7,2924.8,0.13625195]
[1769356508886,0.00280419,2926.7,2925.2,0.13625195]
[1769356509089,0.00280419,2926.7,2925.5,0.13625195]
[1769356509289,0.00280419,2926.7,2925.7,0.13625195]
[1769356509484,0.14107276,2927.5,2925.8,0.30739195]
[1769356509687,0.14107276,2928.1,2926.2,0.13625195]
[1769356509888,0.14107276,2928.1,2926.3,2.14325195]
[1769356510489,0.14107276,2927.9,2926.3,0.00403627]
[1769356512091,0.00289766,2928.1,2926.3,0.14028822]
[1769356512389,0.00289766,2928.1,2926.3,0.31139822]
[1769356512582,0.00289766,2928.1,2926.4,0.13625195]
[1769356512787,0.14397042,2928.1,2926.3,0.00403627]
[1769356512988,0.14397042,2928.1,2926.3,2.01103627]
[1769356513998,0.14397042,2928.1,2926.3,0.00403627]
[1769356516093,0.13930651,2928.0,2926.3,0.00403627]
[1769356516703,1.28243951,2927.7,2926.3,0.00403627]
[1769356516896,0.13930651,2927.6,2926.3,0.00403627]
[1769356517299,0.13930651,2927.1,2925.2,0.17117]
[1769356517594,0.13930651,2927.1,2924.8,0.13943321]
[1769356517595,0.13930651,2927.1,2925.0,2.007]
[1769356518000,0.13930651,2927.1,2924.8,0.13943321]
[1769356518304,0.13930651,2927.1,2924.9,2.007]
[1769356520701,0.13930651,2927.1,2924.8,0.14210216]
[1769356520702,0.13930651,2927.0,2924.8,0.14210216]
[1769356520900,0.13930651,2926.6,2924.8,0.00266895]
[1769356521100,0.13930651,2926.1,2924.8,0.00266895]
[1769356522904,0.13930651,2926.6,2924.8,0.00266895]
[1769356523104,0.13930651,2926.6,2924.8,0.14210216]
[1769356524499,0.13930651,2926.6,2924.9,0.17119]
[1769356525910,0.13930651,2926.6,2924.9,0.31062321]
[1769356526210,0.13930651,2926.6,2925.0,0.13943321]
[1769356528110,0.13930651,2926.6,2924.9,0.17119]
[1769356530810,0.13930651,2927.1,2925.3,0.13943321]
[1769356531011,0.13930651,2927.1,2925.5,0.13943321]
[1769356531609,0.13930651,2927.7,2925.9,0.13943321]
[1769356532717,0.13930651,2927.7,2926.0,0.13943321]
[1769356532911,0.13930651,2927.7,2926.1,0.14358911]
[1769356533514,0.13930651,2927.7,2926.2,2.007]
[1769356534716,0.13930651,2927.7,2926.0,0.17112]
[1769356534919,0.13930651,2927.7,2925.6,3.56458911]
[1769356535215,0.13930651,2927.7,2925.8,2.007]
[1769356535817,0.14078301,2927.5,2925.8,2.007]
[1769356536122,0.14078301,2927.5,2925.6,2.007]
[1769356536825,0.14078301,2927.5,2925.7,0.14358911]
[1769356537421,0.14078301,2927.9,2925.8,0.14358911]
[1769356537721,0.14078301,2927.9,2925.9,0.14358911]
[1769356538526,0.14078301,2927.9,2925.9,0.17113]
[1769356538827,0.14078301,2927.9,2926.0,0.14358911]
[1769356540226,0.14078301,2927.9,2926.0,0.31470911]
[1769356540526,0.14078301,2927.9,2926.1,0.14358911]
[1769356540928,0.00289766,2928.1,2926.1,0.14358911]
[1769356540929,0.00289766,2928.1,2926.2,0.14358911]
[1769356541525,0.14368067,2928.1,2926.2,0.14358911]
[1769356541830,0.14368067,2928.1,2926.3,5.427]
[1769356542331,0.14368067,2928.1,2926.3,5.57058911]
[1769356543630,0.14368067,2928.1,2926.4,0.14358911]
[1769356544440,0.14368067,2928.1,2926.5,2.006]
[1769356546535,0.14078301,2928.0,2926.5,2.006]
[1769356549134,0.14078301,2927.9,2925.9,0.17113]
[1769356549330,0.14078301,2927.8,2925.9,0.17113]
[1769356550637,0.14078301,2927.7,2925.9,0.17113]
[1769356552536,0.14078301,2927.6,2925.9,0.17113]
[1769356553943,0.14078301,2927.6,2925.7,2.006]
[1769356554253,0.00289766,2928.1,2926.5,0.14358911]
[1769356554442,0.00289766,2928.1,2926.6,0.14358911]
[1769356554639,0.00289766,2928.1,2926.7,2.14958911]
[1769356554840,0.00289766,2928.1,2926.8,2.006]
[1769356556150,0.00289766,2928.1,2926.7,0.14358911]
[1769356556350,0.00289766,2928.1,2926.7,2.14958911]
[1769356557251,0.00289766,2928.1,2926.7,2.006]
[1769356560053,0.00289766,2928.1,2926.7,2.14958911]
[1769356562257,0.14368067,2928.1,2926.3,0.14358911]
[1769356562556,0.14368067,2928.1,2926.3,2.14958911]
[1769356563650,0.14368067,2928.1,2925.9,0.31622365]
[1769356563855,0.14322353,2927.9,2925.9,2.32222365]
[1769356566362,0.14322353,2927.9,2926.0,0.14509365]
[1769356570264,0.14322353,2927.9,2926.1,2.006]
[1769356575955,6.52922353,2927.9,2926.0,0.14509365]
[1769356576174,0.14468639,2927.7,2925.9,0.17113]
[1769356578667,0.14468639,2927.5,2925.9,0.17113]
[1769356579362,0.17102,2927.8,2926.0,0.143582]
[1769356579569,0.14468639,2927.7,2926.0,0.143582]
[1769356583463,6.386,2927.9,2926.1,0.314702]
[1769356583658,6.386,2927.9,2926.1,0.17112]
[1769356583964,6.386,2927.9,2926.2,0.143582]
[1769356584373,0.14468639,2927.9,2926.2,0.143582]
[1769356584963,0.14468639,2927.8,2926.1,2.006]
[1769356585166,0.14468639,2927.7,2926.1,2.006]
[1769356586069,0.14468639,2927.7,2926.1,2.149582]
[1769356587875,0.14468639,2927.7,2926.2,0.143582]
[1769356589973,0.14468639,2927.7,2925.9,2.006]
[1769356590179,0.14468639,2927.7,2925.9,2.149582]
[1769356591082,0.14468639,2927.7,2926.0,0.143582]
[1769356594084,0.14468639,2927.7,2925.8,0.17113]
[1769356594085,0.13798033,2927.6,2925.8,0.17113]
[1769356594287,0.13798033,2927.4,2925.8,2.17713]